[Event "*** SCC Grand Prix: Titled Tuesday Blitz"]
[Site "Chess.com"]
[Date "2020.10.13"]
[Round "6"]
[White "Revnov"]
[Black "FairChess_on_YouTube"]
[Result "1-0"]
[WhiteElo "2719"]
[BlackElo "2972"]
[TimeControl "180+1"]
[EndTime "11:08:12 PDT"]
[Termination "Revnov won by resignation"]

1. e4 {[%clk 0:03:00.9]} 1... c5 {[%clk 0:02:58.1]} 2. Nf3 {[%clk 0:02:59.9]}
2... e6 {[%clk 0:02:54.1]} 3. d4 {[%clk 0:02:59.8]} 3... cxd4 {[%clk 0:02:55]}
4. Nxd4 {[%clk 0:03:00.4]} 4... Nc6 {[%clk 0:02:55]} 5. Nc3 {[%clk 0:02:58.3]}
5... Qc7 {[%clk 0:02:55.3]} 6. a3 {[%clk 0:02:54.5]} 6... a6 {[%clk 0:02:47.5]}
7. Be3 {[%clk 0:02:54.3]} 7... Nf6 {[%clk 0:02:45.8]} 8. Bd3 {[%clk 0:02:47.8]}
8... Bd6 {[%clk 0:02:43.1]} 9. Qe2 {[%clk 0:02:26.5]} 9... Be5 {[%clk
0:02:34.6]} 10. Nf3 {[%clk 0:02:22.2]} 10... Bxc3+ {[%clk 0:02:29]} 11. bxc3
{[%clk 0:02:23.1]} 11... d6 {[%clk 0:02:27.2]} 12. O-O {[%clk 0:02:18.8]} 12...
O-O {[%clk 0:02:24.6]} 13. Bg5 {[%clk 0:02:02]} 13... Nd7 {[%clk 0:02:21.7]} 14.
Nd2 {[%clk 0:02:01.2]} 14... e5 {[%clk 0:02:07]} 15. Nc4 {[%clk 0:01:58.2]}
15... Nc5 {[%clk 0:01:58]} 16. Ne3 {[%clk 0:01:57.2]} 16... Be6 {[%clk
0:01:55.7]} 17. a4 {[%clk 0:01:30.5]} 17... Rac8 {[%clk 0:01:48.7]} 18. Rfe1
{[%clk 0:01:23.3]} 18... Na5 {[%clk 0:01:42.1]} 19. c4 {[%clk 0:01:08.1]} 19...
f6 {[%clk 0:01:24.6]} 20. Bh4 {[%clk 0:01:07.5]} 20... Qf7 {[%clk 0:01:24.6]}
21. Bg3 {[%clk 0:00:53.6]} 21... Nc6 {[%clk 0:01:16.3]} 22. f3 {[%clk
0:00:49.5]} 22... Nd4 {[%clk 0:01:11.4]} 23. Qd1 {[%clk 0:00:49.2]} 23... Qg6
{[%clk 0:00:59.9]} 24. Bf2 {[%clk 0:00:43.6]} 24... Kh8 {[%clk 0:00:44.9]} 25.
a5 {[%clk 0:00:43.1]} 25... Rf7 {[%clk 0:00:41.8]} 26. Kh1 {[%clk 0:00:42.7]}
26... Qh5 {[%clk 0:00:39]} 27. Rb1 {[%clk 0:00:40.4]} 27... g5 {[%clk
0:00:29.9]} 28. Bf1 {[%clk 0:00:39.2]} 28... Rd7 {[%clk 0:00:20.4]} 29. Nd5
{[%clk 0:00:36.5]} 29... Bxd5 {[%clk 0:00:18.1]} 30. cxd5 {[%clk 0:00:37.4]}
30... g4 {[%clk 0:00:15.1]} 31. c3 {[%clk 0:00:36.1]} 31... Nb5 {[%clk 0:00:13]}
32. fxg4 {[%clk 0:00:32.2]} 32... Qg6 {[%clk 0:00:12]} 33. Bxb5 {[%clk
0:00:31.9]} 33... axb5 {[%clk 0:00:10.1]} 34. Qf3 {[%clk 0:00:29.9]} 34... Na4
{[%clk 0:00:08.5]} 35. Re3 {[%clk 0:00:30.1]} 35... Rdc7 {[%clk 0:00:08.1]} 36.
Be1 {[%clk 0:00:30]} 36... Rc4 {[%clk 0:00:06.7]} 37. h3 {[%clk 0:00:29.5]}
37... Nc5 {[%clk 0:00:06.8]} 38. Rxb5 {[%clk 0:00:26.3]} 38... Nxe4 {[%clk
0:00:06.2]} 39. Rxb7 {[%clk 0:00:25]} 39... Nc5 {[%clk 0:00:04.4]} 40. Rb6
{[%clk 0:00:22.6]} 40... Rf4 {[%clk 0:00:04.7]} 41. Qe2 {[%clk 0:00:20.4]} 41...
Ne4 {[%clk 0:00:05.2]} 42. Kh2 {[%clk 0:00:19.6]} 42... h5 {[%clk 0:00:05.5]}
43. gxh5 {[%clk 0:00:18.6]} 43... Qf5 {[%clk 0:00:06.1]} 44. Rf3 {[%clk
0:00:16.6]} 44... Rg8 {[%clk 0:00:05.1]} 45. Rb4 {[%clk 0:00:15.8]} 45... Rxf3
{[%clk 0:00:02.8]} 46. Qxf3 {[%clk 0:00:14.3]} 46... Qxf3 {[%clk 0:00:03.3]} 47.
gxf3 {[%clk 0:00:15.2]} 47... Ng5 {[%clk 0:00:03.9]} 48. Kg2 {[%clk 0:00:14.6]}
48... Ne6+ {[%clk 0:00:03.7]} 49. Kf1 {[%clk 0:00:14.3]} 49... Nf4 {[%clk
0:00:04.5]} 50. a6 {[%clk 0:00:13.3]} 50... Nxd5 {[%clk 0:00:04]} 51. Rb7 {[%clk
0:00:10.9]} 51... Ne3+ {[%clk 0:00:02.7]} 52. Ke2 {[%clk 0:00:10.4]} 52... Nc4
{[%clk 0:00:02.9]} 53. a7 {[%clk 0:00:09.8]} 53... Rg2+ {[%clk 0:00:02.7]} 54.
Kd1 {[%clk 0:00:07.2]} 54... Nb2+ {[%clk 0:00:01.4]} 55. Rxb2 {[%clk 0:00:06.1]}
55... Rxb2 {[%clk 0:00:01.2]} 56. a8=Q+ {[%clk 0:00:06.5]} 56... Kg7 {[%clk
0:00:02.1]} 57. Qe4 {[%clk 0:00:07]} 57... Ra2 {[%clk 0:00:01.7]} 58. Qg6+
{[%clk 0:00:07.9]} 58... Kf8 {[%clk 0:00:02]} 59. Qxf6+ {[%clk 0:00:08.1]} 59...
Ke8 {[%clk 0:00:02.9]} 60. Qg6+ {[%clk 0:00:08.5]} 60... Kd8 {[%clk 0:00:03.5]}
61. h6 {[%clk 0:00:09.4]} 61... Kc7 {[%clk 0:00:04]} 62. Bd2 {[%clk 0:00:09.3]}
62... Ra8 {[%clk 0:00:04.9]} 63. h7 {[%clk 0:00:09.6]} 63... Kc6 {[%clk
0:00:05.2]} 64. Qg8 {[%clk 0:00:10.5]} 1-0

[Event "*** SCC Grand Prix: Titled Tuesday Blitz"]
[Site "Chess.com"]
[Date "2020.10.13"]
[Round "6"]
[White "shnitez"]
[Black "kreonx"]
[Result "0-1"]
[WhiteElo "2508"]
[BlackElo "2373"]
[TimeControl "180+1"]
[EndTime "11:08:12 PDT"]
[Termination "kreonx won by checkmate"]

1. c4 {[%clk 0:03:00.9]} 1... e5 {[%clk 0:02:58.2]} 2. Nc3 {[%clk 0:03:00.9]}
2... Nc6 {[%clk 0:02:58.3]} 3. Nf3 {[%clk 0:03:01]} 3... g6 {[%clk 0:02:58.8]}
4. d4 {[%clk 0:02:54]} 4... exd4 {[%clk 0:02:57.7]} 5. Nxd4 {[%clk 0:02:54.9]}
5... Bg7 {[%clk 0:02:57.9]} 6. e3 {[%clk 0:02:46.9]} 6... Nge7 {[%clk
0:02:55.8]} 7. Be2 {[%clk 0:02:43.5]} 7... O-O {[%clk 0:02:53.1]} 8. O-O {[%clk
0:02:40.8]} 8... Nxd4 {[%clk 0:02:53.1]} 9. exd4 {[%clk 0:02:40]} 9... d5 {[%clk
0:02:53.4]} 10. c5 {[%clk 0:02:32.8]} 10... Nf5 {[%clk 0:02:49.6]} 11. Bf3
{[%clk 0:02:20.5]} 11... Bxd4 {[%clk 0:02:32.1]} 12. Nxd5 {[%clk 0:02:09.7]}
12... c6 {[%clk 0:02:21.5]} 13. Ne3 {[%clk 0:01:49.4]} 13... Bxc5 {[%clk
0:01:56.3]} 14. Nxf5 {[%clk 0:01:45.2]} 14... Bxf5 {[%clk 0:01:48.6]} 15. Qb3
{[%clk 0:01:33.5]} 15... Qb6 {[%clk 0:01:39.3]} 16. Qc3 {[%clk 0:01:27.9]} 16...
Bd4 {[%clk 0:01:33.9]} 17. Qa3 {[%clk 0:01:20.9]} 17... Rfe8 {[%clk 0:01:22.3]}
18. h4 {[%clk 0:01:10.1]} 18... Bxf2+ {[%clk 0:01:15.5]} 19. Kh2 {[%clk
0:00:41]} 19... Bxh4 {[%clk 0:00:46]} 20. g3 {[%clk 0:00:38.1]} 20... Be7 {[%clk
0:00:37.4]} 21. Qc3 {[%clk 0:00:36.1]} 21... Qb4 {[%clk 0:00:35.9]} 22. Bd2
{[%clk 0:00:23.4]} 22... Qxc3 {[%clk 0:00:33.9]} 23. Bxc3 {[%clk 0:00:24.3]}
23... Bf8 {[%clk 0:00:33.7]} 24. g4 {[%clk 0:00:24.6]} 24... Be6 {[%clk
0:00:30.3]} 25. Rf2 {[%clk 0:00:24.2]} 25... Bg7 {[%clk 0:00:29.2]} 26. Rc1
{[%clk 0:00:20]} 26... Bxc3 {[%clk 0:00:27.4]} 27. Rxc3 {[%clk 0:00:20.9]} 27...
Red8 {[%clk 0:00:26.9]} 28. Kg3 {[%clk 0:00:20]} 28... Kg7 {[%clk 0:00:21.7]}
29. g5 {[%clk 0:00:19.4]} 29... Bd5 {[%clk 0:00:19.6]} 30. Bg4 {[%clk 0:00:17]}
30... Be6 {[%clk 0:00:17.8]} 31. Rcf3 {[%clk 0:00:15.8]} 31... Rd7 {[%clk
0:00:16.3]} 32. Bxe6 {[%clk 0:00:15.7]} 32... fxe6 {[%clk 0:00:16.4]} 33. Rf6
{[%clk 0:00:16.5]} 33... Re8 {[%clk 0:00:16.6]} 34. Re2 {[%clk 0:00:16.8]} 34...
e5 {[%clk 0:00:16.6]} 35. Kf3 {[%clk 0:00:16.7]} 35... e4+ {[%clk 0:00:13.4]}
36. Kf4 {[%clk 0:00:13.2]} 36... Rf7 {[%clk 0:00:10.8]} 37. Rxf7+ {[%clk
0:00:13.2]} 37... Kxf7 {[%clk 0:00:10.9]} 38. b4 {[%clk 0:00:13.1]} 38... e3
{[%clk 0:00:10.4]} 39. a4 {[%clk 0:00:12.6]} 39... Kg7 {[%clk 0:00:09.8]} 40. b5
{[%clk 0:00:11.6]} 40... cxb5 {[%clk 0:00:09.5]} 41. axb5 {[%clk 0:00:12.5]}
41... a6 {[%clk 0:00:09.8]} 42. bxa6 {[%clk 0:00:13.4]} 42... bxa6 {[%clk
0:00:10.1]} 43. Kf3 {[%clk 0:00:11.9]} 43... a5 {[%clk 0:00:10.1]} 44. Kg2
{[%clk 0:00:12.8]} 44... a4 {[%clk 0:00:08.2]} 45. Kf1 {[%clk 0:00:13.7]} 45...
Re5 {[%clk 0:00:06.2]} 46. Ra2 {[%clk 0:00:14.1]} 46... e2+ {[%clk 0:00:05.8]}
47. Ke1 {[%clk 0:00:13.9]} 47... Re4 {[%clk 0:00:06.2]} 48. Ra3 {[%clk
0:00:13.3]} 48... h6 {[%clk 0:00:06.2]} 49. gxh6+ {[%clk 0:00:12.9]} 49... Kxh6
{[%clk 0:00:07.1]} 50. Rg3 {[%clk 0:00:12.7]} 50... Kg7 {[%clk 0:00:07.6]} 51.
Rg5 {[%clk 0:00:12.4]} 51... Kf6 {[%clk 0:00:07.4]} 52. Ra5 {[%clk 0:00:12.4]}
52... g5 {[%clk 0:00:07.9]} 53. Rb5 {[%clk 0:00:11]} 53... g4 {[%clk 0:00:07.1]}
54. Ra5 {[%clk 0:00:09.1]} 54... g3 {[%clk 0:00:06.7]} 55. Ra8 {[%clk
0:00:06.8]} 55... g2 {[%clk 0:00:05.2]} 56. Rg8 {[%clk 0:00:07.2]} 56... a3
{[%clk 0:00:04.3]} 57. Rxg2 {[%clk 0:00:06.5]} 57... a2 {[%clk 0:00:04.6]} 58.
Rf2+ {[%clk 0:00:05.1]} 58... Ke5 {[%clk 0:00:04.1]} 59. Rf8 {[%clk 0:00:04.2]}
59... a1=Q+ {[%clk 0:00:05]} 60. Kf2 {[%clk 0:00:05.1]} 60... e1=Q+ {[%clk
0:00:05]} 61. Kg2 {[%clk 0:00:05.5]} 61... Qb2+ {[%clk 0:00:05.4]} 62. Kh3
{[%clk 0:00:04.9]} 62... Rh4# {[%clk 0:00:05.4]} 0-1

[Event "*** SCC Grand Prix: Titled Tuesday Blitz"]
[Site "Chess.com"]
[Date "2020.10.13"]
[Round "6"]
[White "akanga001"]
[Black "VladaSviridova"]
[Result "0-1"]
[WhiteElo "1849"]
[BlackElo "2247"]
[TimeControl "180+1"]
[EndTime "11:08:12 PDT"]
[Termination "VladaSviridova won by checkmate"]

1. d4 {[%clk 0:03:00.9]} 1... d5 {[%clk 0:02:59.8]} 2. c4 {[%clk 0:03:00.4]}
2... c6 {[%clk 0:03:00]} 3. Nc3 {[%clk 0:02:59]} 3... Nf6 {[%clk 0:02:59.8]} 4.
cxd5 {[%clk 0:02:59.1]} 4... cxd5 {[%clk 0:02:59.5]} 5. Bf4 {[%clk 0:02:58.9]}
5... Nc6 {[%clk 0:02:59.4]} 6. e3 {[%clk 0:02:58.7]} 6... a6 {[%clk 0:02:59.7]}
7. Bd3 {[%clk 0:02:55.2]} 7... Bg4 {[%clk 0:02:59.5]} 8. f3 {[%clk 0:02:46.6]}
8... Bd7 {[%clk 0:02:56.7]} 9. a3 {[%clk 0:02:45]} 9... e6 {[%clk 0:02:47.6]}
10. Bg3 {[%clk 0:02:43.2]} 10... Be7 {[%clk 0:02:42.9]} 11. Nge2 {[%clk
0:02:42.9]} 11... Rc8 {[%clk 0:02:40.5]} 12. O-O {[%clk 0:02:35.8]} 12... O-O
{[%clk 0:02:35.2]} 13. e4 {[%clk 0:02:32.2]} 13... Na5 {[%clk 0:02:02]} 14. b3
{[%clk 0:02:07.7]} 14... Qb6 {[%clk 0:01:49.5]} 15. Bc2 {[%clk 0:02:03.1]} 15...
Rfd8 {[%clk 0:01:09.7]} 16. Bf2 {[%clk 0:01:58.3]} 16... Rc6 {[%clk 0:01:01.9]}
17. Na4 {[%clk 0:01:51.5]} 17... Qc7 {[%clk 0:00:58.6]} 18. Nc5 {[%clk
0:01:48.8]} 18... Be8 {[%clk 0:00:51.3]} 19. b4 {[%clk 0:01:39.6]} 19... Nc4
{[%clk 0:00:49.7]} 20. Ba4 {[%clk 0:01:38.7]} 20... b5 {[%clk 0:00:48.1]} 21.
Bb3 {[%clk 0:01:35.6]} 21... Bxc5 {[%clk 0:00:46.5]} 22. dxc5 {[%clk 0:01:33.8]}
22... dxe4 {[%clk 0:00:45.8]} 23. Qc1 {[%clk 0:01:30.7]} 23... e3 {[%clk
0:00:42.6]} 24. Bxe3 {[%clk 0:01:25.5]} 24... Nxe3 {[%clk 0:00:38.4]} 25. Qxe3
{[%clk 0:01:25.4]} 25... Nd5 {[%clk 0:00:36.7]} 26. Bxd5 {[%clk 0:01:23.3]}
26... Rxd5 {[%clk 0:00:36.6]} 27. Nf4 {[%clk 0:01:20.8]} 27... Rd7 {[%clk
0:00:33.2]} 28. Rad1 {[%clk 0:01:19.5]} 28... Qd8 {[%clk 0:00:30.4]} 29. Qe2
{[%clk 0:01:15.8]} 29... Rcc7 {[%clk 0:00:26.4]} 30. Nh3 {[%clk 0:01:11.2]}
30... Rxd1 {[%clk 0:00:23.9]} 31. Rxd1 {[%clk 0:01:10.1]} 31... Rd7 {[%clk
0:00:24.2]} 32. Nf2 {[%clk 0:01:10.4]} 32... Rxd1+ {[%clk 0:00:22.5]} 33. Qxd1
{[%clk 0:01:08.1]} 33... Qxd1+ {[%clk 0:00:22.2]} 34. Nxd1 {[%clk 0:01:08.2]}
34... Kf8 {[%clk 0:00:22.4]} 35. Kf2 {[%clk 0:01:07.6]} 35... Ke7 {[%clk
0:00:22.4]} 36. Ke3 {[%clk 0:01:08.5]} 36... Bc6 {[%clk 0:00:20.2]} 37. Kd4
{[%clk 0:01:09.4]} 37... f6 {[%clk 0:00:19.9]} 38. Ne3 {[%clk 0:01:09.7]} 38...
e5+ {[%clk 0:00:19.6]} 39. Kd3 {[%clk 0:01:08.1]} 39... Ke6 {[%clk 0:00:19.7]}
40. Nf1 {[%clk 0:01:02.3]} 40... f5 {[%clk 0:00:19.7]} 41. Nd2 {[%clk
0:01:02.1]} 41... g5 {[%clk 0:00:19.8]} 42. g3 {[%clk 0:01:02.2]} 42... h5
{[%clk 0:00:19.9]} 43. h3 {[%clk 0:01:01.3]} 43... Bd5 {[%clk 0:00:19.1]} 44.
Ke3 {[%clk 0:01:00.5]} 44... Bc6 {[%clk 0:00:18.5]} 45. Kd3 {[%clk 0:00:59.5]}
45... Kd5 {[%clk 0:00:18.8]} 46. Ke3 {[%clk 0:00:57]} 46... Bd7 {[%clk
0:00:18.8]} 47. h4 {[%clk 0:00:50.4]} 47... f4+ {[%clk 0:00:17.7]} 48. gxf4
{[%clk 0:00:48.5]} 48... exf4+ {[%clk 0:00:17]} 49. Kf2 {[%clk 0:00:48]} 49...
gxh4 {[%clk 0:00:17]} 50. Ne4 {[%clk 0:00:44.8]} 50... Ke5 {[%clk 0:00:16.5]}
51. Nc3 {[%clk 0:00:31.3]} 51... Bc6 {[%clk 0:00:16.5]} 52. Ne2 {[%clk
0:00:29.9]} 52... h3 {[%clk 0:00:16.2]} 53. Nc1 {[%clk 0:00:15.1]} 53... h4
{[%clk 0:00:14.4]} 54. Ne2 {[%clk 0:00:13.7]} 54... h2 {[%clk 0:00:14.1]} 55.
Kg2 {[%clk 0:00:11.4]} 55... Bxf3+ {[%clk 0:00:14.3]} 56. Kxh2 {[%clk
0:00:12.3]} 56... Bxe2 {[%clk 0:00:14.4]} 57. Kh3 {[%clk 0:00:12.4]} 57... f3
{[%clk 0:00:14.7]} 58. Kxh4 {[%clk 0:00:13.3]} 58... f2 {[%clk 0:00:15]} 59. Kg3
{[%clk 0:00:13.8]} 59... f1=Q {[%clk 0:00:14.4]} 60. c6 {[%clk 0:00:10.2]} 60...
Qf3+ {[%clk 0:00:13.9]} 61. Kh4 {[%clk 0:00:07.7]} 61... Qg4# {[%clk 0:00:13.8]}
0-1

[Event "*** SCC Grand Prix: Titled Tuesday Blitz"]
[Site "Chess.com"]
[Date "2020.10.13"]
[Round "6"]
[White "KyrgyzFighter"]
[Black "tylityli"]
[Result "1-0"]
[WhiteElo "2389"]
[BlackElo "2211"]
[TimeControl "180+1"]
[EndTime "11:08:13 PDT"]
[Termination "KyrgyzFighter won on time"]

1. c4 {[%clk 0:02:57.7]} 1... c5 {[%clk 0:02:58.8]} 2. Nf3 {[%clk 0:02:57.4]}
2... Nf6 {[%clk 0:02:58.3]} 3. d4 {[%clk 0:02:57.9]} 3... cxd4 {[%clk 0:02:56]}
4. Nxd4 {[%clk 0:02:58.8]} 4... e5 {[%clk 0:02:56.4]} 5. Nb5 {[%clk 0:02:58.5]}
5... d5 {[%clk 0:02:52.9]} 6. cxd5 {[%clk 0:02:54.5]} 6... a6 {[%clk 0:02:50.5]}
7. N5c3 {[%clk 0:02:51.9]} 7... Qa5 {[%clk 0:02:37.2]} 8. g3 {[%clk 0:02:35.4]}
8... b5 {[%clk 0:02:26.1]} 9. Bg2 {[%clk 0:02:23.6]} 9... Bb7 {[%clk 0:02:18]}
10. O-O {[%clk 0:02:19.8]} 10... b4 {[%clk 0:02:15.1]} 11. Qa4+ {[%clk
0:02:18.2]} 11... Qxa4 {[%clk 0:02:14.5]} 12. Nxa4 {[%clk 0:02:19.1]} 12... Bxd5
{[%clk 0:02:03.6]} 13. Be3 {[%clk 0:01:44.4]} 13... Bxg2 {[%clk 0:02:00.4]} 14.
Kxg2 {[%clk 0:01:45.3]} 14... Nbd7 {[%clk 0:01:58.1]} 15. Nd2 {[%clk 0:01:45.3]}
15... Be7 {[%clk 0:01:55.9]} 16. Nc4 {[%clk 0:01:44.6]} 16... O-O {[%clk
0:01:53.7]} 17. Rac1 {[%clk 0:01:39.1]} 17... Nd5 {[%clk 0:01:52.7]} 18. Rfd1
{[%clk 0:01:29.1]} 18... Nxe3+ {[%clk 0:01:50.2]} 19. Nxe3 {[%clk 0:01:30]}
19... Rfd8 {[%clk 0:01:45.6]} 20. Nf5 {[%clk 0:01:18.5]} 20... Bf8 {[%clk
0:01:43.3]} 21. Rc7 {[%clk 0:01:12.6]} 21... Nf6 {[%clk 0:01:34.4]} 22. Rdc1
{[%clk 0:01:11]} 22... g6 {[%clk 0:01:30.6]} 23. Ne3 {[%clk 0:01:02.1]} 23...
Rd2 {[%clk 0:01:24.2]} 24. R1c2 {[%clk 0:00:58.4]} 24... Rad8 {[%clk 0:01:14.6]}
25. Nb6 {[%clk 0:00:54.3]} 25... Rxc2 {[%clk 0:01:07.2]} 26. Rxc2 {[%clk
0:00:55.2]} 26... Ne4 {[%clk 0:01:04]} 27. f3 {[%clk 0:00:52.6]} 27... Bc5
{[%clk 0:00:53.5]} 28. Nec4 {[%clk 0:00:43.3]} 28... Bxb6 {[%clk 0:00:50.6]} 29.
Nxb6 {[%clk 0:00:44.2]} 29... Rd2 {[%clk 0:00:47.6]} 30. Rc8+ {[%clk 0:00:42.6]}
30... Kg7 {[%clk 0:00:47.4]} 31. fxe4 {[%clk 0:00:43.3]} 31... Rxe2+ {[%clk
0:00:45.5]} 32. Kf3 {[%clk 0:00:43.9]} 32... Rxb2 {[%clk 0:00:45.5]} 33. Rc4
{[%clk 0:00:43.2]} 33... a5 {[%clk 0:00:44]} 34. a4 {[%clk 0:00:39.6]} 34...
bxa3 {[%clk 0:00:35.9]} 35. Nd5 {[%clk 0:00:39.8]} 35... a2 {[%clk 0:00:33.1]}
36. Ra4 {[%clk 0:00:39.5]} 36... Rxh2 {[%clk 0:00:31]} 37. Nc3 {[%clk
0:00:36.5]} 37... Rb2 {[%clk 0:00:19.7]} 38. Nxa2 {[%clk 0:00:33.8]} 38... Rb3+
{[%clk 0:00:18.9]} 39. Kf2 {[%clk 0:00:34.1]} 39... Rb2+ {[%clk 0:00:18.3]} 40.
Kf3 {[%clk 0:00:33.3]} 40... Rb3+ {[%clk 0:00:18.4]} 41. Kg2 {[%clk 0:00:34]}
41... Rb2+ {[%clk 0:00:18.4]} 42. Kh3 {[%clk 0:00:34.4]} 42... Rb5 {[%clk
0:00:19.1]} 43. Nc3 {[%clk 0:00:34.2]} 43... Rb4 {[%clk 0:00:17.1]} 44. Rxa5
{[%clk 0:00:31.2]} 44... Rc4 {[%clk 0:00:17]} 45. Ra3 {[%clk 0:00:31.8]} 45...
f5 {[%clk 0:00:16.2]} 46. exf5 {[%clk 0:00:31.8]} 46... gxf5 {[%clk 0:00:17.1]}
47. Kg2 {[%clk 0:00:32.7]} 47... Kf6 {[%clk 0:00:16.4]} 48. Kf3 {[%clk
0:00:32.6]} 48... Kg5 {[%clk 0:00:15]} 49. Ne2 {[%clk 0:00:31.6]} 49... e4+
{[%clk 0:00:14.7]} 50. Kf2 {[%clk 0:00:30.7]} 50... Rc2 {[%clk 0:00:13.4]} 51.
Ra7 {[%clk 0:00:30.3]} 51... h5 {[%clk 0:00:13.3]} 52. Rg7+ {[%clk 0:00:30]}
52... Kf6 {[%clk 0:00:13.3]} 53. Rh7 {[%clk 0:00:30.4]} 53... Kg6 {[%clk
0:00:13.4]} 54. Rh8 {[%clk 0:00:30.5]} 54... Kg5 {[%clk 0:00:13.1]} 55. Ke3
{[%clk 0:00:30.5]} 55... Ra2 {[%clk 0:00:12.7]} 56. Rg8+ {[%clk 0:00:27.9]}
56... Kf6 {[%clk 0:00:11.8]} 57. Nd4 {[%clk 0:00:28.2]} 57... Ra3+ {[%clk
0:00:11.4]} 58. Kf4 {[%clk 0:00:27.8]} 58... Rd3 {[%clk 0:00:08.8]} 59. Nxf5
{[%clk 0:00:26.8]} 59... Rf3+ {[%clk 0:00:07.8]} 60. Kxe4 {[%clk 0:00:27.2]}
60... Kf7 {[%clk 0:00:05.6]} 61. Rg7+ {[%clk 0:00:25.9]} 61... Kf6 {[%clk
0:00:05.5]} 62. Kxf3 {[%clk 0:00:26.6]} 1-0

[Event "*** SCC Grand Prix: Titled Tuesday Blitz"]
[Site "Chess.com"]
[Date "2020.10.13"]
[Round "6"]
[White "anasta10"]
[Black "Sueetin"]
[Result "1/2-1/2"]
[WhiteElo "2411"]
[BlackElo "2269"]
[TimeControl "180+1"]
[EndTime "11:08:14 PDT"]
[Termination "Game drawn by repetition"]

1. Nf3 {[%clk 0:03:00.2]} 1... d5 {[%clk 0:02:59.4]} 2. d4 {[%clk 0:03:01.1]}
2... Nf6 {[%clk 0:02:58.9]} 3. c4 {[%clk 0:03:02]} 3... e6 {[%clk 0:02:58.5]} 4.
Nc3 {[%clk 0:03:01.8]} 4... Bb4 {[%clk 0:02:58.2]} 5. cxd5 {[%clk 0:02:59]} 5...
exd5 {[%clk 0:02:57.8]} 6. Bg5 {[%clk 0:02:58.4]} 6... Nbd7 {[%clk 0:02:58]} 7.
e3 {[%clk 0:02:58.5]} 7... c5 {[%clk 0:02:57.6]} 8. Bd3 {[%clk 0:02:48.4]} 8...
c4 {[%clk 0:02:54.7]} 9. Bc2 {[%clk 0:02:15.3]} 9... Qa5 {[%clk 0:02:53.4]} 10.
O-O {[%clk 0:01:48.9]} 10... Bxc3 {[%clk 0:02:52.2]} 11. bxc3 {[%clk 0:01:23.5]}
11... Ne4 {[%clk 0:02:51.9]} 12. Bf4 {[%clk 0:01:11.3]} 12... Ndf6 {[%clk
0:02:23.9]} 13. Nd2 {[%clk 0:00:55.7]} 13... Nxc3 {[%clk 0:02:06.3]} 14. Qe1
{[%clk 0:00:52.6]} 14... Bd7 {[%clk 0:01:31.1]} 15. e4 {[%clk 0:00:39.6]} 15...
Nb5 {[%clk 0:00:47.5]} 16. exd5+ {[%clk 0:00:36.5]} 16... Kf8 {[%clk 0:00:47]}
17. Be5 {[%clk 0:00:20.6]} 17... Re8 {[%clk 0:00:43.9]} 18. Nxc4 {[%clk
0:00:14.2]} 18... Qxe1 {[%clk 0:00:34.5]} 19. Rfxe1 {[%clk 0:00:14.1]} 19...
Nxd5 {[%clk 0:00:33.9]} 20. Nd6 {[%clk 0:00:12.6]} 20... Re6 {[%clk 0:00:26.3]}
21. Nxb5 {[%clk 0:00:10.7]} 21... Bxb5 {[%clk 0:00:25.9]} 22. Bb3 {[%clk
0:00:11.6]} 22... Bc6 {[%clk 0:00:25.7]} 23. Rac1 {[%clk 0:00:09.5]} 23... f6
{[%clk 0:00:15.1]} 24. Bxd5 {[%clk 0:00:09.7]} 24... Bxd5 {[%clk 0:00:14.8]} 25.
Rc8+ {[%clk 0:00:10.1]} 25... Re8 {[%clk 0:00:14.2]} 26. Rxe8+ {[%clk
0:00:09.4]} 26... Kxe8 {[%clk 0:00:15.1]} 27. Bxf6+ {[%clk 0:00:10.3]} 27... Kf7
{[%clk 0:00:14.8]} 28. Be5 {[%clk 0:00:10.6]} 28... Rc8 {[%clk 0:00:13.8]} 29.
f3 {[%clk 0:00:10.6]} 29... Bxa2 {[%clk 0:00:13.1]} 30. Ra1 {[%clk 0:00:10.1]}
30... Rc2 {[%clk 0:00:13.6]} 31. Bd6 {[%clk 0:00:10.3]} 31... b5 {[%clk
0:00:13.2]} 32. Bc5 {[%clk 0:00:10.2]} 32... Ke6 {[%clk 0:00:13.3]} 33. Bxa7
{[%clk 0:00:09.4]} 33... Kd5 {[%clk 0:00:13.3]} 34. Bc5 {[%clk 0:00:09.7]} 34...
Kc4 {[%clk 0:00:13.8]} 35. Re1 {[%clk 0:00:05]} 35... b4 {[%clk 0:00:14]} 36.
Bf8 {[%clk 0:00:04]} 36... g6 {[%clk 0:00:12.3]} 37. d5 {[%clk 0:00:03.2]} 37...
b3 {[%clk 0:00:11.9]} 38. d6 {[%clk 0:00:03.6]} 38... Rd2 {[%clk 0:00:11.6]} 39.
Bg7 {[%clk 0:00:03]} 39... Rxd6 {[%clk 0:00:10.9]} 40. Re7 {[%clk 0:00:02.7]}
40... Rd2 {[%clk 0:00:09.6]} 41. Rb7 {[%clk 0:00:02.5]} 41... Bb1 {[%clk
0:00:08.1]} 42. h3 {[%clk 0:00:02.3]} 42... Bd3 {[%clk 0:00:07.6]} 43. Kh2
{[%clk 0:00:02.5]} 43... Bc2 {[%clk 0:00:06.7]} 44. Kg3 {[%clk 0:00:02.8]} 44...
Bd3 {[%clk 0:00:06.7]} 45. h4 {[%clk 0:00:03.2]} 45... Bf1 {[%clk 0:00:06.9]}
46. Kf4 {[%clk 0:00:03.7]} 46... Rxg2 {[%clk 0:00:07]} 47. Rc7+ {[%clk
0:00:04.6]} 47... Kd3 {[%clk 0:00:07]} 48. Rc3+ {[%clk 0:00:04.5]} 48... Kd2
{[%clk 0:00:07.4]} 49. Rxb3 {[%clk 0:00:04.9]} 49... Re2 {[%clk 0:00:04.4]} 50.
Rb2+ {[%clk 0:00:05.2]} 50... Kd3 {[%clk 0:00:04.8]} 51. Rb7 {[%clk 0:00:05.5]}
51... Rc2 {[%clk 0:00:04]} 52. Rd7+ {[%clk 0:00:05.3]} 52... Ke2 {[%clk
0:00:03.8]} 53. Bf6 {[%clk 0:00:04.5]} 53... Rc4+ {[%clk 0:00:04.1]} 54. Rd4
{[%clk 0:00:04.2]} 54... Rxd4+ {[%clk 0:00:03.1]} 55. Bxd4 {[%clk 0:00:05.1]}
55... Bh3 {[%clk 0:00:02.9]} 56. Bf6 {[%clk 0:00:05.1]} 56... h5 {[%clk
0:00:02.8]} 57. Kg3 {[%clk 0:00:05.5]} 57... Bf5 {[%clk 0:00:03.7]} 58. f4
{[%clk 0:00:05.8]} 58... Bd3 {[%clk 0:00:04.1]} 59. Bg5 {[%clk 0:00:06.7]} 59...
Bf5 {[%clk 0:00:05]} 60. Bf6 {[%clk 0:00:07.3]} 60... Bd3 {[%clk 0:00:05.9]} 61.
Bg5 {[%clk 0:00:08.2]} 61... Bf5 {[%clk 0:00:06.8]} 62. Bf6 {[%clk 0:00:09.1]}
1/2-1/2